bitfinex/quotes_ETHUSD_20250623
["timestamp","ask_amount","ask_price","bid_price","bid_amount"]
[1750682821507,0.5553,2265.4,2264.7,0.88311667]
[1750682821712,10.5553,2265.4,2264.9,4.4150408]
[1750682821920,0.5553,2265.4,2265.0,4.41499777]
[1750682822387,0.5553,2265.4,2265.1,4.41479663]
[1750682822588,0.5553,2265.4,2265.1,4.85627629]
[1750682823004,0.5553,2265.4,2265.1,0.44147966]
[1750682823203,0.5553,2265.4,2264.9,4.41511712]
[1750682823380,0.5553,2265.7,2265.1,10.17624761]
[1750682823581,0.5553,2265.7,2265.4,4.41413822]
[1750682824022,0.5553,2265.7,2265.3,4.4143372]
[1750682824203,10.606,2266.3,2265.1,10.17624761]
[1750682824410,0.5553,2266.2,2265.5,4.41393697]
[1750682824612,10.5553,2266.2,2265.5,4.41384488]
[1750682824807,0.5553,2266.2,2265.6,4.41383897]
[1750682825183,0.5553,2266.2,2265.7,4.4134788]
[1750682825521,0.5553,2266.2,2265.7,4.41353569]
[1750682825823,0.5553,2266.2,2265.8,0.44135357]
[1750682826119,0.5553,2266.2,2265.8,4.41335644]
[1750682826324,0.5553,2266.2,2265.7,4.41356358]
[1750682826486,0.5553,2266.2,2265.7,4.4135568]
[1750682826689,0.5553,2266.2,2265.6,4.41375206]
[1750682826980,0.5553,2266.2,2265.7,4.41363619]
[1750682827221,0.5553,2266.2,2265.8,0.88273883]
[1750682827895,0.5553,2266.2,2265.5,5.74071766]
[1750682828101,0.5553,2266.2,2265.5,4.41397966]
[1750682828288,0.5553,2266.2,2265.4,2.9272]
[1750682828484,0.5553,2266.2,2265.3,1.32685]
[1750682828688,0.5553,2266.0,2265.3,1.32685]
[1750682828923,0.5553,2265.8,2265.3,1.32685]
[1750682829118,0.5553,2265.8,2265.0,4.41500246]
[1750682829318,0.5553,2265.8,2265.2,4.41458427]
[1750682829616,0.5553,2265.8,2265.0,5.7419183]
[1750682829917,0.5553,2265.8,2265.1,4.41478579]
[1750682830117,0.5553,2265.8,2265.2,0.44147858]
[1750682831224,0.5553,2265.8,2265.3,4.41427048]
[1750682831802,0.5553,2265.8,2265.2,4.85602138]
[1750682832299,10.0,2265.9,2265.4,5.24415875]
[1750682832629,8.3153,2266.0,2265.5,4.41392321]
[1750682832797,8.3153,2266.0,2265.6,0.96581893]
[1750682833413,7.76,2266.0,2265.7,4.4136378]
[1750682833614,7.76,2266.0,2265.6,0.96581893]
[1750682834126,7.76,2266.0,2265.6,5.37955997]
[1750682834627,0.5553,2266.2,2265.7,4.4136222]
[1750682834831,0.5553,2266.2,2265.8,0.97931822]
[1750682835129,0.5553,2266.2,2265.8,5.39268436]
[1750682835792,0.5553,2266.2,2265.8,0.97931822]
[1750682836706,0.5553,2266.2,2265.8,5.39276354]
[1750682837417,0.5553,2266.2,2265.8,5.83986789]
[1750682838190,2.047,2266.4,2265.9,5.4385693]
[1750682838395,0.5553,2266.6,2266.1,4.41268316]
[1750682838715,0.5553,2266.6,2266.2,4.41266706]
[1750682839027,0.5553,2266.6,2266.1,4.41275434]
[1750682839346,0.5553,2266.8,2266.3,4.41239549]
[1750682839497,0.5553,2266.8,2266.3,5.37041236]
[1750682839695,10.5553,2266.8,2266.4,4.41219881]
[1750682839897,10.5553,2266.8,2266.3,0.95801687]
[1750682840234,0.5553,2266.7,2266.0,4.4129877]
[1750682840400,11.800885,2267.2,2266.0,4.4129877]
[1750682840401,0.5553,2267.1,2266.7,0.7561]
[1750682840748,0.5553,2267.1,2266.3,0.7561]
[1750682840894,12.046,2267.0,2266.2,4.412545]
[1750682841099,10.0,2266.8,2266.2,4.41257778]
[1750682841294,0.5553,2266.7,2266.3,0.51686778]
[1750682841519,0.5553,2266.7,2266.1,0.7561]
[1750682841720,0.5553,2266.7,2265.9,0.8184]
[1750682842116,0.5553,2266.7,2265.9,10.8184]
[1750682842326,0.5553,2266.7,2266.2,10.0]
[1750682842513,0.5553,2266.7,2265.9,1.326509]
[1750682842716,0.55,2266.7,2265.8,0.4865884]
[1750682842940,0.5553,2266.6,2265.8,0.4865884]
[1750682843131,0.5553,2266.4,2265.8,0.4865884]
[1750682845324,1.12815476,2266.5,2265.8,0.4865884]
[1750682845325,0.5553,2266.2,2265.8,0.05]
[1750682845527,2.6013,2266.1,2265.8,0.05]
[1750682845725,7.48,2266.0,2265.8,0.05]
[1750682845928,1.56343,2265.9,2265.8,0.05]
[1750682846105,2.11343,2265.9,2265.8,0.05]
[1750682846627,12.11343,2265.9,2265.8,0.05]
[1750682847801,11.63443,2265.9,2265.8,0.05]
[1750682848634,2.11343,2265.9,2265.8,0.05]
[1750682848836,21.81367761,2265.9,2265.8,0.05]
[1750682849038,0.55,2265.6,2264.5,4.41584978]
[1750682849207,0.55,2265.4,2264.6,10.44158498]
[1750682849407,9.521,2265.3,2264.6,0.44158498]
[1750682850039,0.5053,2265.2,2264.6,10.44158498]
[1750682850538,0.5053,2265.2,2264.6,10.87714791]
[1750682851265,0.55,2265.1,2263.8,4.41717191]
[1750682851576,0.5053,2265.0,2264.2,14.41656191]
[1750682851734,0.5053,2265.0,2264.3,4.41636893]
[1750682852074,0.5053,2265.0,2264.2,14.41646858]
[1750682852467,0.5053,2265.0,2264.3,4.41637574]
[1750682852768,0.5053,2265.0,2264.3,0.43322001]
[1750682852769,0.55,2264.9,2264.3,0.43322001]
[1750682852936,10.0173,2264.8,2264.0,4.41686299]
[1750682853128,10.0173,2264.8,2264.1,14.41675238]
[1750682853335,0.5053,2264.8,2264.1,14.41675238]
[1750682853571,0.5053,2264.6,2263.8,2.4748238]
[1750682853728,0.5053,2264.6,2263.8,1.1470528]
[1750682853933,9.512,2264.5,2264.1,4.41675187]
[1750682854166,9.512,2264.5,2264.0,14.41686658]
[1750682854381,9.512,2264.5,2263.9,4.41704325]
[1750682854599,2.047,2264.4,2264.0,14.41693094]
[1750682854739,2.047,2264.4,2264.0,10.0]
[1750682855073,0.5053,2264.6,2264.0,10.0]
[1750682855380,2.047,2264.5,2264.0,10.0]
[1750682855536,2.047,2264.4,2264.0,10.0]
[1750682856068,2.047,2264.4,2263.8,1.23079388]
[1750682856266,0.5053,2264.3,2263.8,4.86981858]
[1750682856781,0.5053,2264.3,2263.8,0.45249388]
[1750682856951,0.5053,2264.3,2263.7,10.0]
[1750682857500,0.5053,2264.3,2263.8,10.0]
[1750682857656,2.047,2264.2,2263.8,10.0]
[1750682858398,0.5053,2264.3,2263.8,14.86266146]
[1750682858575,2.047,2264.1,2263.8,14.86266146]
[1750682858890,2.047,2264.1,2263.8,0.4453307]
[1750682859051,2.047,2264.1,2263.7,4.41745916]
[1750682859052,2.047,2264.1,2263.7,10.0]
[1750682859253,0.5053,2264.0,2262.8,0.8224]
[1750682859458,0.55,2263.5,2262.5,0.8106]
[1750682859697,9.9693,2263.4,2262.9,1.328271]
[1750682859860,9.9693,2263.4,2262.6,0.36894838]
[1750682860063,1.05193,2263.3,2262.6,0.36894838]
[1750682860292,1.05193,2263.3,2262.6,0.80966051]
[1750682860487,2.01,2263.2,2262.8,10.0]
[1750682861073,2.01,2263.2,2262.6,5.22924439]
[1750682861259,2.01,2263.2,2262.8,10.0]
[1750682861660,2.01,2263.2,2262.7,14.41948234]
[1750682861903,2.01,2263.2,2262.6,15.22924017]
[1750682862069,2.01,2263.2,2262.7,4.41949557]
[1750682862278,0.5053,2263.4,2262.7,0.8254]
[1750682862464,0.5053,2263.4,2263.0,4.41889158]
[1750682862667,2.01,2263.3,2262.9,4.4189832]
[1750682862901,2.01,2263.3,2262.8,4.41921528]
[1750682863229,0.5053,2263.8,2263.2,20.17624761]
[1750682863520,2.011,2264.2,2263.6,10.0]
[1750682863727,2.011,2264.2,2263.6,0.7731]
[1750682863870,8.2653,2264.4,2263.9,4.41707313]
[1750682864201,2.011,2264.3,2264.0,4.41695768]
[1750682864368,2.011,2264.3,2264.0,4.85187679]
[1750682864566,8.2653,2264.4,2264.0,4.85186943]
[1750682864769,0.5053,2264.4,2263.9,10.0]
[1750682865215,2.011,2264.3,2263.7,4.41754649]
[1750682865366,2.011,2264.3,2263.8,4.41734454]
[1750682865772,2.011,2264.3,2263.7,15.06928841]
[1750682866008,2.011,2264.3,2263.7,15.5175327]
[1750682866601,2.011,2264.3,2263.8,4.41731836]
[1750682866806,0.5053,2264.4,2263.8,4.41731836]
[1750682866969,2.011,2264.3,2263.9,4.41702528]
[1750682867171,0.5053,2264.4,2263.8,1.07080344]
[1750682867404,0.5053,2264.4,2263.9,4.41706879]
[1750682867582,2.011,2264.3,2264.0,4.4169516]
[1750682867971,2.011,2264.3,2263.9,14.41706145]
[1750682868281,2.011,2264.3,2263.9,16.5175847]
[1750682868499,2.011,2264.3,2263.9,16.51751833]
[1750682868809,2.011,2264.3,2264.0,4.41695156]
[1750682869119,2.011,2264.2,2264.0,4.41695156]
[1750682869294,2.011,2264.2,2263.9,12.10052325]
[1750682869500,2.011,2264.2,2264.0,4.41687206]
[1750682870694,2.011,2264.2,2264.0,4.41682175]
[1750682871011,0.5053,2264.8,2264.2,4.41647039]
[1750682871308,0.55,2264.4,2263.7,0.44824429]
[1750682871473,17.95474892,2264.6,2263.1,4.41862024]
[1750682871474,0.5053,2264.1,2263.1,4.41862024]
[1750682871676,0.5053,2263.9,2263.2,10.0]
[1750682871910,2.011,2263.8,2263.2,2.09725521]
[1750682872207,2.011,2263.8,2263.0,2.57911774]
[1750682872394,2.011,2263.8,2263.0,0.8129709]
[1750682872714,0.5053,2263.7,2263.0,10.36888316]
[1750682872870,0.5053,2263.5,2263.1,0.36886686]
[1750682873076,9.449,2263.4,2263.1,0.36886686]
[1750682873285,10.49943,2263.4,2263.1,0.36886686]
[1750682873814,10.49943,2263.4,2262.8,0.44881913]
[1750682873973,10.49943,2263.4,2262.6,10.0]
[1750682874176,10.49943,2263.4,2262.5,4.41988334]
[1750682874376,10.49943,2263.4,2262.6,10.0]
[1750682874683,1.100473,2263.3,2262.6,12.09280443]
[1750682874882,1.100473,2263.3,2262.7,4.41949279]
[1750682875299,2.011,2263.2,2262.7,4.41949279]
[1750682875605,2.011,2263.2,2262.6,14.41957939]
[1750682875978,2.011,2263.2,2262.7,4.41948143]
[1750682877314,2.011,2263.1,2262.8,4.41917354]
[1750682877809,2.011,2263.1,2262.6,10.0]
[1750682877810,2.011,2263.1,2262.7,4.41937971]
[1750682878789,2.011,2263.1,2262.8,4.41929981]
[1750682879013,2.011,2263.1,2262.7,6.34791548]
[1750682879318,2.011,2263.1,2262.8,4.4192707]
[1750682880113,2.5163,2263.5,2263.1,4.41860293]
[1750682880275,2.5163,2263.5,2263.0,4.41879329]
[1750682880612,2.5163,2263.5,2263.1,4.41858351]
[1750682881710,2.5163,2263.5,2263.1,4.41855984]
[1750682881893,2.5163,2263.5,2263.1,4.41859386]
[1750682882295,8.2653,2263.9,2263.0,10.96154904]
[1750682882489,2.011,2263.8,2263.3,4.41815548]
[1750682882730,2.011,2263.8,2263.3,5.30181356]
[1750682882928,2.011,2263.8,2263.3,0.88365808]
[1750682883127,2.011,2263.8,2263.0,15.38036249]
[1750682883294,2.011,2263.8,2263.0,15.380301]
[1750682883498,2.011,2263.8,2263.0,15.38036765]
[1750682883739,0.5053,2263.7,2263.0,15.38036765]
[1750682884035,0.5053,2263.7,2263.0,15.38045612]
[1750682884836,0.5053,2263.7,2263.1,4.41868599]
[1750682885135,0.5053,2263.7,2263.1,11.97991421]
[1750682885331,0.5053,2263.7,2263.1,14.41871636]
[1750682885635,0.5053,2263.7,2263.1,10.0]
[1750682886736,0.5053,2263.7,2263.0,16.70857107]
[1750682887037,0.5053,2263.7,2263.1,14.41870529]
[1750682887235,0.5053,2263.7,2263.1,16.08955842]
[1750682887443,0.5053,2263.7,2263.2,4.41851128]
[1750682888020,2.011,2263.6,2263.2,4.41851128]
[1750682888535,0.5053,2263.7,2263.1,12.42245313]
[1750682888711,2.011,2263.5,2263.3,4.41824587]
[1750682889112,0.5053,2263.7,2263.3,4.41824587]
[1750682889311,1.997,2263.6,2263.3,4.41824587]
[1750682889834,7.76,2263.9,2263.3,2.12592021]
[1750682890037,9.757,2263.9,2263.3,6.54414807]
[1750682890204,9.757,2263.9,2263.3,6.54413481]
[1750682890413,9.757,2263.9,2263.4,10.0]
[1750682891113,9.757,2263.9,2263.6,4.41772244]
[1750682891318,0.5053,2264.1,2263.7,4.41742424]
[1750682891523,0.5053,2264.1,2263.8,4.4172613]
[1750682891722,2.5023,2264.1,2263.7,0.97151086]
[1750682891921,2.5023,2264.1,2263.8,4.41725648]
[1750682892140,2.5023,2264.1,2263.7,5.38896117]
[1750682892347,2.5023,2264.1,2263.8,4.41726714]
[1750682892544,2.5023,2264.1,2263.9,4.41713799]
[1750682892730,1.997,2264.1,2263.9,4.41713799]
[1750682892931,8.2653,2264.3,2263.9,4.41713799]
[1750682893247,7.76,2264.3,2263.8,10.98062283]
[1750682893545,7.76,2264.3,2264.0,4.41688252]
[1750682894057,7.76,2264.3,2263.8,10.98062283]
[1750682894221,7.76,2264.3,2263.8,10.0]
[1750682894409,7.76,2264.3,2263.9,4.41714196]
[1750682894617,7.76,2264.3,2263.8,14.41726646]
[1750682894836,10.2623,2264.4,2263.8,10.0]
[1750682895150,0.5053,2264.2,2263.7,0.45288844]
[1750682895350,0.55,2264.3,2263.4,4.41796317]
[1750682895351,0.5053,2264.0,2263.5,10.0]
[1750682895528,1.997,2263.9,2263.5,10.0]
[1750682896048,1.997,2263.9,2263.5,14.41778441]
[1750682896219,1.997,2263.9,2263.6,4.41773597]
[1750682896415,0.5053,2264.0,2263.7,4.41737792]
[1750682896620,1.997,2264.0,2263.7,4.86804264]
[1750682896821,1.997,2264.1,2263.7,4.86804264]
[1750682897223,1.997,2264.1,2263.8,4.41719584]
[1750682897420,1.997,2264.1,2263.7,0.45065164]
[1750682897421,1.997,2264.1,2263.7,4.86808476]
[1750682897637,1.997,2264.1,2263.7,4.41743312]
[1750682899255,1.997,2264.1,2263.7,4.41744991]
[1750682899729,1.997,2264.1,2263.9,4.41711546]
[1750682899927,0.5053,2264.2,2264.0,4.41695598]
[1750682900129,9.757,2264.4,2264.0,4.41695598]
[1750682900344,9.757,2264.4,2264.1,4.41675027]
[1750682900935,7.76,2264.4,2263.7,7.01773529]
[1750682901126,9.757,2264.4,2263.9,4.41704699]
[1750682901462,9.757,2264.4,2263.8,14.41728454]
[1750682901648,9.757,2264.4,2263.9,4.41710963]
[1750682901843,9.757,2264.4,2263.8,14.41723648]
[1750682902165,2.5023,2264.3,2263.7,0.43635365]
[1750682902470,0.5053,2264.1,2263.6,4.41772737]
[1750682902627,0.5053,2264.1,2263.7,4.41752961]
[1750682903028,0.5053,2264.1,2263.7,4.41738383]
[1750682903227,2.5023,2264.1,2263.8,4.41735044]
[1750682903764,2.5023,2264.1,2263.7,4.4174294]
[1750682904478,2.5023,2264.1,2263.7,4.85413687]
[1750682904631,2.5023,2264.1,2263.7,0.43670747]
[1750682904833,2.5023,2264.1,2263.8,4.41732949]
[1750682905058,0.5053,2264.1,2263.8,4.41732949]
[1750682905245,0.5053,2264.1,2263.9,4.41703857]
[1750682905246,1.997,2264.1,2263.9,4.41703857]
[1750682906248,0.5053,2264.3,2263.9,4.416988]
[1750682906431,2.5023,2264.3,2264.0,4.41687444]
[1750682907033,2.5023,2264.3,2263.9,5.23614464]
[1750682907261,2.5023,2264.3,2264.0,4.41695793]
[1750682908193,0.5053,2264.3,2263.9,5.2361507]
[1750682908488,2.56033,2264.3,2263.8,14.41723602]
[1750682908894,4.55733,2264.3,2263.8,14.41723602]
[1750682909210,4.55733,2264.3,2263.8,10.0]
[1750682911368,0.5053,2264.2,2263.7,0.44572777]
[1750682911569,0.5053,2264.0,2263.2,4.41847903]
[1750682911892,0.5053,2263.8,2263.3,10.0]
[1750682912091,0.5053,2263.6,2263.1,5.74649522]
[1750682912389,0.5053,2263.6,2263.3,10.0]
[1750682912555,0.5053,2263.6,2263.2,10.0]
[1750682912957,0.5053,2263.6,2263.1,4.41860334]
[1750682913188,0.5053,2263.6,2263.2,10.0]
[1750682913501,0.5053,2263.6,2263.1,14.4186478]
[1750682914192,0.5053,2263.9,2263.1,0.85359612]
[1750682914399,0.5053,2263.9,2263.1,10.0]
[1750682914696,0.5053,2263.9,2262.9,4.41900811]
[1750682914896,0.5053,2263.9,2263.0,14.41885245]
[1750682915098,0.5053,2263.7,2263.0,10.0]
[1750682915278,0.99323,2263.6,2263.0,4.41879629]
[1750682915472,0.99323,2263.6,2263.1,4.41870219]
[1750682915679,0.5053,2263.7,2263.3,4.41815431]
[1750682916194,1.997,2263.6,2263.3,4.41822454]
[1750682917011,0.5053,2263.7,2263.0,4.41891035]
[1750682917193,1.997,2263.7,2263.6,4.41774165]
[1750682917400,0.5053,2264.1,2263.7,4.41752184]
[1750682917593,0.5053,2264.1,2263.8,4.41734813]
[1750682917594,1.997,2264.0,2263.8,4.41734813]
[1750682917770,0.5053,2264.1,2263.7,4.41737503]
[1750682917972,0.5053,2264.1,2263.8,4.41734975]
[1750682918179,0.5053,2264.1,2263.9,4.41702949]
[1750682918614,2.5023,2264.3,2263.9,4.41702949]
[1750682918776,0.5053,2264.3,2264.0,4.41694807]
[1750682918977,2.4993,2264.3,2264.0,4.41694807]
[1750682919512,11.1223,2264.5,2264.1,4.41660242]
[1750682919805,1.994,2264.4,2264.1,4.41659869]
[1750682921106,1.994,2264.4,2264.0,5.30028161]
[1750682921107,1.994,2264.4,2264.2,4.41651845]
[1750682921314,1.994,2264.4,2264.0,4.41684781]
[1750682921474,11.1223,2264.5,2264.0,4.41684781]
[1750682921676,1.994,2264.4,2264.0,4.41684781]
[1750682922585,1.994,2264.4,2263.9,14.4170742]
[1750682922798,1.994,2264.4,2263.9,14.41707299]
[1750682923008,4.04853,2264.4,2263.9,14.41707299]
[1750682924107,4.04853,2264.4,2264.0,4.41692713]
[1750682924603,4.04853,2264.4,2263.9,14.41704113]
[1750682925007,4.04853,2264.4,2263.9,10.0]
[1750682925405,0.5053,2264.3,2263.7,0.4419303]
[1750682925616,0.5053,2264.1,2263.6,10.0]
[1750682925823,7.9343,2264.1,2263.7,4.41750583]
[1750682927082,7.9343,2264.1,2263.7,0.44894981]
[1750682927324,7.9343,2264.1,2263.6,10.0]
[1750682927686,7.9343,2264.1,2263.3,0.8288]
[1750682927892,0.5053,2263.9,2263.3,1.328077]
[1750682928194,0.5053,2263.7,2263.0,4.41882248]
[1750682928399,0.5053,2263.7,2263.2,10.0]
[1750682928723,7.9333,2263.7,2263.1,10.0]
[1750682928925,7.9333,2263.7,2263.1,4.41868271]
[1750682929123,7.9333,2263.7,2263.1,5.51619043]
[1750682929423,7.9333,2263.7,2263.2,4.41852244]
[1750682931033,7.9333,2263.7,2263.3,4.41831327]
[1750682931435,0.5053,2263.7,2263.1,1.09750772]
[1750682931599,1.994,2263.6,2263.2,10.0]
[1750682932956,1.994,2263.6,2263.2,14.41852034]
[1750682933456,1.994,2263.6,2263.2,10.0]
[1750682933625,1.994,2263.6,2263.0,4.41887223]
[1750682933822,1.994,2263.6,2263.2,10.0]
[1750682934137,1.994,2263.6,2263.0,5.94155361]
[1750682934445,1.994,2263.6,2263.2,10.0]
[1750682934816,1.994,2263.6,2263.2,14.41842562]
[1750682935053,1.994,2263.6,2263.3,4.41825335]
[1750682935554,1.994,2263.6,2263.2,14.41841749]
[1750682935759,1.994,2263.6,2263.2,16.45441993]
[1750682936459,1.994,2263.6,2263.3,4.41831519]
[1750682936821,0.5053,2263.7,2263.3,4.41831519]
[1750682937025,2.4993,2263.9,2263.5,4.41783677]
[1750682937345,0.5053,2263.9,2263.6,10.0]
[1750682937546,0.5053,2263.9,2263.4,10.0]
[1750682937746,0.5053,2263.9,2263.3,10.0]
[1750682938655,0.5053,2263.9,2263.2,10.0]
[1750682939836,0.5053,2263.9,2263.2,14.41851683]
[1750682940031,0.75523,2263.9,2263.2,14.41851683]
[1750682940759,0.5053,2263.9,2263.4,10.0]
[1750682940950,2.4993,2263.9,2263.4,10.0]
[1750682941150,2.4993,2263.9,2263.2,4.41841938]
[1750682941551,2.4993,2263.9,2263.4,10.0]
[1750682941763,2.4993,2263.9,2263.4,14.41803165]
[1750682941956,2.4993,2263.9,2263.5,1.88362839]
[1750682942151,2.4993,2263.9,2263.6,10.0]
[1750682942552,2.4993,2263.9,2263.7,4.41754335]
[1750682942863,2.4993,2263.9,2263.3,14.41824645]
[1750682942864,0.5053,2263.8,2263.3,14.41824645]
[1750682943040,0.5053,2263.8,2263.3,14.41816428]
[1750682943229,0.5053,2263.8,2263.5,10.0]
[1750682944062,0.5053,2263.8,2263.5,4.4178352]
[1750682944260,0.5053,2263.8,2263.5,14.4178352]
[1750682944261,2.4993,2263.8,2263.5,14.4178352]
[1750682944569,2.4993,2263.8,2263.5,10.0]
[1750682944951,2.4993,2263.8,2263.2,4.41843831]
[1750682945151,2.4993,2263.8,2263.1,14.41858283]
[1750682945682,0.5053,2263.8,2263.1,10.0]
[1750682945846,0.5053,2263.8,2263.1,4.41858873]
[1750682946049,0.5053,2263.8,2263.2,14.41851468]
[1750682946965,0.5053,2263.8,2263.3,4.41831392]
[1750682947289,0.5053,2263.8,2262.1,4.42053379]
[1750682947290,1.0553,2263.4,2262.1,4.42053379]
[1750682947583,0.55,2263.1,2262.2,0.36901361]
[1750682947783,0.5053,2263.0,2262.3,4.42013388]
[1750682947985,0.5053,2263.0,2262.5,4.41978947]
[1750682948352,0.5053,2263.0,2262.6,4.41969045]
[1750682948555,0.55,2263.6,2262.6,4.41969045]
[1750682948556,0.5053,2263.5,2262.8,4.41921481]
[1750682948754,0.5053,2263.5,2262.7,4.4193994]
[1750682948949,0.5053,2263.5,2262.8,1.88390267]
[1750682949188,0.5053,2263.5,2262.8,6.30318695]
[1750682949685,0.5053,2263.5,2262.8,2.64970267]
[1750682950184,0.5053,2263.5,2262.8,7.06898778]
[1750682950583,0.5053,2263.5,2262.8,7.06888883]
[1750682950789,0.5053,2263.5,2262.9,1.14883028]
[1750682952083,0.5053,2263.5,2263.0,4.4188859]
[1750682952592,0.5053,2263.5,2262.9,15.56782744]
[1750682953161,0.5053,2263.5,2262.9,11.14883028]
[1750682953369,0.5053,2263.5,2262.9,1.14883028]
[1750682953706,0.75853,2263.5,2262.7,4.41949771]
[1750682953860,0.25323,2263.5,2262.6,14.41957995]
[1750682954067,0.5053,2263.4,2262.6,14.41957995]
[1750682954591,0.5053,2263.4,2262.8,4.41928584]
[1750682954759,0.5053,2263.4,2262.9,10.0]
[1750682956587,0.5053,2263.4,2262.9,14.41910507]
[1750682957101,0.5053,2263.4,2262.9,10.0]
[1750682957592,0.5053,2263.4,2262.8,10.0]
[1750682958376,0.5053,2263.3,2262.6,10.0]
[1750682958573,0.5053,2263.3,2262.7,4.41933984]
[1750682958898,0.5053,2263.3,2262.8,10.0]
[1750682959600,0.55,2263.8,2262.9,10.0]
[1750682959783,1.0553,2263.6,2262.9,10.0]
[1750682960301,0.5053,2263.5,2262.9,10.0]
[1750682960797,0.5053,2263.5,2262.8,10.0]
[1750682961005,0.5053,2263.3,2262.6,10.0]
[1750682961207,2.027,2263.4,2262.3,1.77132839]
[1750682961208,0.5053,2263.0,2262.3,6.19154625]
[1750682961365,0.5053,2263.0,2262.3,0.44289239]
[1750682961568,0.5053,2262.8,2262.1,1.328777]
[1750682961763,0.5053,2262.8,2261.9,4.42090134]
[1750682962102,0.5053,2262.7,2262.0,1.66656081]
[1750682963201,0.5053,2262.5,2261.8,2.027]
[1750682963367,0.5053,2262.5,2261.8,0.45174419]
[1750682963565,0.5053,2262.5,2261.7,10.0]
[1750682963766,0.5053,2262.5,2261.7,14.42143434]
[1750682964080,0.5053,2262.5,2261.9,10.0]
[1750682965396,0.5053,2262.5,2261.7,4.4213519]
[1750682965596,0.5053,2262.5,2261.8,5.30550823]
[1750682965790,0.5053,2262.5,2261.8,5.74679007]
[1750682965991,0.5053,2262.5,2261.8,1.32568309]
[1750682966190,0.5053,2262.5,2261.9,4.42103544]
[1750682968307,0.5053,2262.5,2262.0,4.42086617]
[1750682968492,0.5053,2262.5,2261.9,4.42093962]
[1750682968693,0.5053,2262.5,2261.9,1.99443173]
[1750682969192,0.5053,2262.5,2261.8,0.88429128]
[1750682969396,0.5053,2262.5,2261.3,14.63988131]
[1750682969596,0.55,2262.0,2261.0,10.97060673]
[1750682969906,0.5053,2261.8,2261.1,1.329319]
[1750682970075,0.5053,2261.8,2260.8,4.42313256]
[1750682970272,0.30823,2261.7,2260.9,5.38278076]
[1750682970516,0.5053,2261.6,2261.3,4.42216061]
[1750682971180,0.5053,2261.6,2260.9,11.398453]
[1750682971387,0.5053,2261.6,2261.1,4.42252349]
[1750682972209,0.5053,2261.6,2261.2,4.42223871]
[1750682972402,0.5053,2261.6,2261.3,4.42218005]
[1750682972616,0.5053,2261.6,2261.2,4.42231569]
[1750682972793,0.5053,2261.6,2260.9,21.61615973]
[1750682973000,0.5053,2261.6,2261.0,7.46232269]
[1750682973204,0.5053,2261.6,2261.1,4.42261905]
[1750682974187,0.5053,2261.6,2260.9,5.82138902]
[1750682974387,2.5333,2261.6,2260.9,15.82138902]
[1750682974617,2.5333,2261.6,2261.0,10.0]
[1750682974788,0.5053,2261.4,2260.7,4.42332053]
[1750682974995,0.5053,2261.4,2260.9,10.0]
[1750682975292,0.5053,2261.4,2260.9,14.42297934]
[1750682975693,0.5053,2261.4,2260.8,10.0]
[1750682976006,0.5053,2261.4,2260.8,15.99850317]
[1750682976178,0.5053,2261.4,2261.0,4.42274015]
[1750682976388,0.5053,2261.4,2261.0,4.42270463]
[1750682976621,0.5053,2261.4,2261.1,4.42262572]
[1750682976790,0.5053,2261.4,2260.9,5.19203224]
[1750682977112,0.5053,2261.4,2261.0,7.16518795]
[1750682977420,0.5053,2261.4,2261.1,4.42254554]
[1750682978324,10.0,2262.2,2261.1,10.21770673]
[1750682978508,0.5053,2261.8,2261.3,4.42207376]
[1750682978693,0.5053,2261.8,2260.9,5.1920584]
[1750682978694,0.25333,2261.7,2260.9,10.98680673]
[1750682978895,0.5053,2261.8,2261.0,10.0]
[1750682979110,0.5053,2261.8,2261.0,14.4228134]
[1750682979905,1.998,2261.7,2261.1,4.42262615]
[1750682980218,1.998,2261.7,2261.0,14.42275918]
[1750682980219,1.998,2261.7,2261.2,4.42226306]
[1750682980527,1.998,2261.7,2261.1,4.42251201]
[1750682980884,0.5053,2261.8,2261.1,4.42251242]
[1750682981191,1.998,2261.7,2261.3,4.4222337]
[1750682981396,2.5033,2261.8,2261.4,4.42202131]
[1750682982296,0.5053,2261.8,2261.6,4.42164132]
[1750682982520,2.5033,2262.2,2261.6,4.42150103]
[1750682983223,2.5033,2262.2,2261.8,10.0]
[1750682984404,2.5033,2262.2,2261.6,10.8034]
[1750682984579,2.5033,2262.2,2262.0,10.0]
[1750682985179,2.5033,2262.2,2262.0,14.42078268]
[1750682985384,2.5033,2262.2,2261.9,14.42094752]
[1750682985618,2.5033,2262.2,2261.8,10.0]
[1750682985798,0.5053,2262.2,2261.8,10.0]
[1750682985992,0.5053,2262.2,2261.7,16.52345162]
[1750682986202,0.5053,2263.3,2262.3,10.0]
[1750682986519,0.5053,2263.8,2262.9,0.7992]
[1750682986683,0.5053,2263.8,2263.1,10.0]
[1750682986888,0.5053,2263.8,2262.5,10.7523]
[1750682987084,0.5053,2263.6,2262.6,10.0]
[1750682987288,0.5053,2263.6,2262.6,14.41967306]
[1750682987689,0.5053,2263.6,2262.6,10.0]
[1750682987889,0.5053,2263.6,2262.6,14.86910133]
[1750682988089,1.0553,2263.5,2262.6,14.86910133]
[1750682988387,0.55,2263.3,2262.6,14.86910133]
[1750682988794,0.5053,2263.2,2262.6,10.4494173]
[1750682989218,0.5053,2263.2,2262.6,0.4494173]
[1750682989410,0.5053,2263.2,2262.5,14.41984964]
[1750682989604,0.5053,2263.2,2262.5,23.99190303]
[1750682990421,0.5053,2263.2,2262.6,4.41968537]
[1750682990586,0.5053,2263.2,2262.5,23.99184238]
[1750682990791,0.5053,2263.2,2262.6,4.41966503]
[1750682991617,0.5053,2263.2,2262.6,0.43405904]